Cogmind - Beta 16.1 @@@ ROGUE MODE // 2026.03.26 @ 20:32:39 Player: Ez Result: Core destroyed Performance ------------- Evolutions (1) 500 Regions Visited (2) 400 Robots Destroyed (23) 115 Value Destroyed (813) 813 Prototype IDs (1) 20 Alien Tech Used (0) 0 Bonus (0) 0 TOTAL SCORE: 1848 Bonus ------- None Cogmind --------- Core Integrity 0/400 Matter 265/300 Energy 259/265 System Corruption 1% Temperature Critical (546) Movement Treading (145) Location -9/Materials Parts ------- > --- POWER (1) -------- Reinforced Ion Engine > --- PROPULSION (3) --- Advanced Treads Advanced Treads Advanced Treads > --- UTILITY (3) ------ High-capacity Storage Unit Hardened Light Armor Plating Hardened Light Armor Plating > --- WEAPON (2) ------- Beam Rifle Pulse Rifle > --- INVENTORY (20) --- Ion Engine Light Treads Advanced Treads Structural Scanner ECM Suite Peak State ------------ > --- POWER ------------ Reinforced Ion Engine > --- PROPULSION ------- Advanced Treads Advanced Treads Advanced Treads > --- UTILITY ---------- High-capacity Storage Unit Hardened Light Armor Plating Hardened Light Armor Plating > --- WEAPON ----------- Beam Rifle Pulse Rifle > --- INVENTORY -------- Ion Engine Light Treads Advanced Treads Structural Scanner ECM Suite [Rating: 21] Favorites ----------- Power Ion Engine Engine Ion Engine Propulsion Aluminum Leg Treads Advanced Treads Leg Aluminum Leg Utility High-capacity Storage Unit Storage High-capacity Storage Unit Protection Utility Shielding Weapon Light Assault Rifle Energy Gun Improved EM Shotgun Ballistic Gun Light Assault Rifle Launcher Grenade Launcher Build | -11 -10 -9 ------- Run | Yrd Mat Mat Slots Evolved 2 | . . 2 Power . | . . . Propulsion 1 | . . 1 Utility 1 | . . 1 Weapon . | . . . Parts Attached 31 | 8 5 18 Power 5 | 1 1 3 Engine 5 | 1 1 3 Core . | . . . Reactor . | . . . Propulsion 13 | 4 3 6 Treads 9 | 2 1 6 Leg 4 | 2 2 . Wheel . | . . . Hover . | . . . Flight . | . . . Utility 6 | 1 1 4 Device . | . . . Storage 2 | 1 1 . Processor . | . . . Hackware . | . . . Protection 4 | . . 4 Artifact . | . . . Weapon 7 | 2 . 5 Energy Gun 4 | . . 4 Energy Cannon . | . . . Ballistic Gun 2 | 2 . . Ballistic Cannon . | . . . Launcher 1 | . . 1 Special Weapon . | . . . Impact Weapon . | . . . Slashing Weapon . | . . . Piercing Weapon . | . . . Special Melee Weapon . | . . . Unidentified Prototypes 1 | . . 1 Parts Lost 11 | . 1 10 Power 1 | . . 1 Propulsion 3 | . . 3 Utility 2 | . . 2 Weapon 5 | . 1 4 Highest Loss Streak 6 | . 1 6 To Critical Strikes . | . . . Average Backups 4 | . 5 4 Power . | . . . Propulsion 2 | . 2 1 Utility 1 | . 1 1 Weapon . | . . . Tool/Special . | . . . Unused Backups 5 | . . 5 Power 1 | . . 1 Propulsion 2 | . . 2 Utility 2 | . . 2 Weapon . | . . . Tool/Special . | . . . Average Slot Usage (%) 79 | . 76 82 Engine 12 | . 14 9 Treads 16 | . 3 32 Leg 13 | . 24 . Storage 12 | . 14 11 Protection 5 | . . 11 Energy Gun 6 | . . 13 Ballistic Gun 11 | . 19 1 Peak Build Rating 21 | 6 6 21 Average Rating 8 | 5 5 14 On Entrance 3 | . 6 5 Avg Prop Armor Cover (%) . | . . . Naked Turns . | . . . Heaviest Build 66 | 10 46 66 Greatest Support 66 | 40 40 66 Greatest Overweight (x) 15 | 3 15 1 Average Overweight (x) . | . . . Largest Inventory Capacity 20 | 8 20 20 Average Capacity 16 | 7 14 20 Most Carried 9 | 2 9 7 Average Carried 4 | . 5 4 Final Capacity 20 | 8 20 20 Final Carried 7 | 2 7 5 Class Distribution -------------------- 100% | Mutant Dominant Class ---------------- Mutant | -10/Materials Mutant | -9/Materials Resources | -11 -10 -9 ----------- Run | Yrd Mat Mat Matter Collected 674 | . 410 264 Remotely . | . . . Salvage Created 968 | . 382 586 Parts 54 | . 15 39 Haulers Intercepted 1 | . 1 . Recyclers Shooed 2 | . . 2 Parts Field Recycled . | . . . Retrieved Matter . | . . . Parts Self-Destructed . | . . . Prevented . | . . . Parts Restored . | . . . Kills | -11 -10 -9 ------- Run | Yrd Mat Mat Combat Hostiles Destroyed 21 | . 8 13 Guns 16 | . 8 8 AOE 5 | . . 5 Classes Destroyed 5 | . 2 3 Hauler 1 | . 1 . Operator 1 | . . 1 Grunt 17 | . 8 9 Brawler 1 | . . 1 Sentry 3 | . . 3 Best Kill Streak 3 | . 2 3 Combat Bots Only 3 | . 2 3 Max Kills in Single Turn 2 | . 1 2 Gunslinging . | . . . Exploded 2 | . . 2 Melee . | . . . Uniques/NPCs Destroyed . | . . . Combat | -11 -10 -9 -------- Run | Yrd Mat Mat Hostile Shots Fired 216 | . 59 157 Missed 50 | . 14 36 Hits 166 | . 45 121 Melee 17 | . . 17 Projectile 149 | . 45 104 Critical Strikes 2 | . . 2 Actively Blocked 2 | . . 2 Damage Taken 2641 | . 556 2085 Core 524 | . 104 420 Absorbed by Shields . | . . . Redirected to Shielding 76 | . . 76 Core Remaining (%) 79 | 100 58 . Volleys Fired 137 | . 72 65 Largest 2 | . 2 2 Hottest 119 | . 40 119 Shots Fired 197 | . 114 83 Gun 193 | . 114 79 Cannon . | . . . Launcher 4 | . . 4 Special . | . . . Kinetic 140 | . 114 26 Thermal 17 | . . 17 Explosive 4 | . . 4 Electromagnetic 36 | . . 36 Robot Hit Streak 11 | . 8 11 Robot Miss Streak 4 | . 4 3 Penetration Max . | . . . Secondary Targets . | . . . Shots Hit Robots 131 | . 67 64 Core Hits 63 | . 26 37 Critical Kills 1 | . 1 . Critical Parts Destroyed 1 | . 1 . Critical Strikes 2 | . 2 . Destroy 2 | . 2 . Melee Attacks . | . . . Impact . | . . . Slashing . | . . . Piercing . | . . . Sneak Attacks . | . . . Combat Hostiles . | . . . Follow-up Attacks . | . . . Damage Inflicted 1838 | . 561 1277 Guns 1403 | . 552 851 Cannons . | . . . Explosions 426 | . . 426 Melee . | . . . Ramming 9 | . 9 . Kinetic 691 | . 552 139 Thermal 329 | . . 329 Explosive 284 | . . 284 Electromagnetic 525 | . . 525 Impact . | . . . Slashing . | . . . Piercing . | . . . Highest Corruption 1 | . . 1 Average Corruption 1 | . . 1 Corruption Purged . | . . . Corruption Blocked . | . . . Effects 2 | . . 2 Energy Discharges 1 | . . 1 Weapon Failures 1 | . . 1 Overload Shots . | . . . Overflow Damage 14 | . . 14 Projectiles . | . . . Explosions 14 | . . 14 Melee . | . . . Knockbacks . | . . . Impact . | . . . Kinetic . | . . . Secondary . | . . . Self-Inflicted Damage 196 | . . 196 Shots 6 | . . 6 Rammed . | . . . Targets Rammed 4 | . 4 . Kicked 4 | . 4 . Crushed . | . . . Highest Temperature 546 | . 18 546 Average Temperature 68 | . 8 96 Received Heat Transfer 867 | . 309 558 Effects 5 | . . 5 Interference 2 | . . 2 Damage (minor) 1 | . . 1 Damage (core) 2 | . . 2 Siege Activations . | . . . Martial Activations . | . . . Shielding Activations . | . . . Robots Disrupted 1 | . . 1 Combat Hostiles 1 | . . 1 Robots Corrupted . | . . . Combat Hostiles . | . . . Parts Fried 3 | . . 3 Impact Corruptions . | . . . Robots Melted . | . . . Combat Hostiles . | . . . Parts Melted 2 | . . 2 Heat Transferred 594 | . . 594 Parts Sabotaged . | . . . Parts Stolen . | . . . Parts Stripped . | . . . Power Chain Reactions 3 | . . 3 Alert | -11 -10 -9 ------- Run | Yrd Mat Mat Maximum Alert Level . | . . . Low Security (%) 100 | 100 100 100 Level 1 . | . . . Level 2 . | . . . Level 3 . | . . . Level 4 . | . . . Level 5 . | . . . High Security . | . . . Max Security . | . . . Peak Influence 115 | . 50 115 Initial . | . . . Average 18 | . 7 35 Influence Increases 668 | . 229 439 Destroy 0b10 Robot/C 420 | . 160 260 Destroy 0b10 Robot/NC 15 | . 5 10 Destroy Leader 112 | . 32 80 Successful Hack 32 | . 32 . Disable Machine 30 | . . 30 Destroy Structure 29 | . . 29 Lose Combat Pursuer 30 | . . 30 Influence Decreases 557 | . 229 328 Time Decay 507 | . 219 288 Lost Part 50 | . 10 40 Squads Dispatched 5 | . 1 4 Investigation 1 | . . 1 Extermination . | . . . Reinforcement 4 | . 1 3 Assault . | . . . Garrison . | . . . Intercept . | . . . Searches Triggered . | . . . Construction Impeded 1 | . . 1 Haulers Reinforced . | . . . Active Scanning Responses . | . . . Cargo Convoy Interrupts . | . . . Stealth | -11 -10 -9 --------- Run | Yrd Mat Mat Distress Signals 5 | . 2 3 Communications Jammed . | . . . Distress Signals . | . . . Times Spotted 42 | . 22 20 Peak Tracking Total 7 | . 3 7 Tactical Retreats 2 | . . 2 Traps | -11 -10 -9 ------- Run | Yrd Mat Mat Traps Triggered 2 | . 1 1 Indirectly . | . . . Trap Hack Attempts . | . . . Triggered . | . . . Disarmed . | . . . Reprogrammed . | . . . Reused . | . . . Traps Extracted . | . . . Installed . | . . . Triggered . | . . . Machines | -11 -10 -9 ---------- Run | Yrd Mat Mat Machines Disabled 2 | . . 2 Max in Single Turn 1 | . . 1 Machines Repaired . | . . . Machines Dismantled . | . . . Machines Sabotaged . | . . . Overloaded Fab Kills . | . . . Hacking | -11 -10 -9 --------- Run | Yrd Mat Mat Machines Accessed 6 | . 4 2 Terminals 5 | . 4 1 Fabricators . | . . . Repair Stations 1 | . . 1 Recycling Units . | . . . Scanalyzers . | . . . Garrison Access . | . . . Total Hacks 18 | . 12 6 Successful 9 | . 6 3 Failed 9 | . 6 3 Catastrophic 2 | . 1 1 Database Lockouts . | . . . Manual 11 | . 10 1 Terminals 13 | . 12 1 Fabricators . | . . . Repair Stations 5 | . . 5 Recycling Units . | . . . Scanalyzers . | . . . Garrison Access . | . . . Terminal Hacks 3 | . 3 . Disarm Traps 1 | . 1 . Transport Status 1 | . 1 . Registered Components 1 | . 1 . Fabricator Hacks . | . . . Repair Station Hacks 3 | . . 3 Scan Component 3 | . . 3 Recycling Unit Hacks . | . . . Scanalyzer . | . . . Garrison Access Hacks . | . . . Unauthorized Hacks 3 | . 3 . Terminals 3 | . 3 . Assimilate 2 | . 2 . Operators 1 | . 1 . Fabricators . | . . . Repair Stations . | . . . Recycling Units . | . . . Scanalyzers . | . . . Garrison Access . | . . . Data Cores Recovered . | . . . Used . | . . . Hacking Detections 2 | . 2 . Full Trace Events . | . . . Feedback Events . | . . . Feedback Blocked . | . . . Robot Schematics Acquired . | . . . Robots Built . | . . . Authchips . | . . . Time . | . . . Total Robot Build Rating . | . . . Part Schematics Acquired . | . . . Parts Built . | . . . Authchips . | . . . Time . | . . . Total Part Build Rating . | . . . Part Studies Acquired . | . . . Parts Repaired . | . . . Time . | . . . Parts Recycled . | . . . Recycled Matter . | . . . Retrieved Matter . | . . . Retrieved Components . | . . . Parts Scanalyzed . | . . . Part Schematics Acquired . | . . . Parts Damaged . | . . . Bothacking | -11 -10 -9 ------------ Run | Yrd Mat Mat Used RIF Installer . | . . . Robots Hacked . | . . . Non-combat . | . . . Combat . | . . . Robot Hacks Applied . | . . . Relay Couplers Released . | . . . Fabnet Peak Effective % . | . . . Robots Rewired . | . . . Allies Hacked . | . . . Hacks Repelled . | . . . Allies | -11 -10 -9 -------- Run | Yrd Mat Mat Total Allies . | . . . Largest Group . | . . . Highest-Rated Group . | . . . Highest-Rated Ally . | . . . Total Orders . | . . . Ally Attacks . | . . . Total Damage . | . . . Kills . | . . . Allies Corrupted . | . . . Allies Melted . | . . . Intel | -11 -10 -9 ------- Run | Yrd Mat Mat Active Infowar (turns) . | . . . Robot Analysis Total . | . . . Derelict Logs Recovered . | . . . Drone Launches . | . . . Drone Recoveries . | . . . Exploration | -11 -10 -9 ------------- Run | Yrd Mat Mat Turns Passed 2203 | 143 1141 919 Spaces Moved 928 | 93 443 392 Core 21 | 20 1 . Treads 502 | 53 57 392 Legs 405 | 20 385 . Wheels . | . . . Hover . | . . . Flight . | . . . Fastest Speed 50 | 50 120 145 Average Speed 168 | 136 189 151 Slowest Speed 800 | 200 800 240 Overloaded Moves . | . . . Propulsion Burnouts . | . . . Robots Hopped . | . . . Potential Cave-ins . | . . . Cave-ins Triggered . | . . . Exploration Rate (%) 35 | 4 65 38 Regions Visited 2 Branch Regions . Pre-discovered Areas . | . . . Known Exits Taken . | . . . Unknown Exits Taken 2 | 1 1 . Scrap Searched . | . . . Spaces Dug . | . . . Terrain Destroyed 32 | . . 32 Melee . | . . . Projectile . | . . . AOE 32 | . . 32 Terrain Rammed . | . . . Walls Destroyed . | . . . Machines Disabled . | . . . Actions | -11 -10 -9 --------- Run | Yrd Mat Mat Total 1397 | 104 657 636 Wait 259 | 2 113 144 Move 926 | 92 442 392 Hop . | . . . Pick Up 15 | 2 8 5 Fast Attach 15 | 6 3 6 Attach 12 | . 2 10 Detach 5 | . 3 2 Swap 11 | 2 3 6 Drop 12 | . 7 5 Fire 137 | . 72 65 Melee . | . . . Ram . | . . . Kick 4 | . 4 . Crush . | . . . Escape Stasis . | . . . Rewire 1 | . . 1 Trap . | . . . Miscellaneous . | . . . Route ------- -11/Scrapyard -10/Materials (discovered 2 exits: *Mat / [*Min]) -9/Materials (discovered 1 exit: [*Mat]) History --------- Turn | Location | Event 20 | -11/Scrapyard | Discovered new exit (range 15) 144 | -11/Scrapyard | Entered Materials 310 | -10/Materials | Build established: Mutant 394 | -10/Materials | Discovered new exit (range 9) 897 | -10/Materials | Discovered new exit (range 10) 1285 | -10/Materials | Entered another Materials area 1285 | -9/Materials | Evolved 2 slots: Propulsion x1, Utility x1 1462 | -9/Materials | Lost 6 parts (1p3n1u1w) 1644 | -9/Materials | Core integrity fell below 50% 1929 | -9/Materials | Discovered new exit (range 16) 2196 | -9/Materials | Core integrity fell below 20% 2205 | -9/Materials | Core destroyed Last Messages --------------- K-01 Serf collects debris. U-05 Engineer builds a Wall. U-05 Engineer lays Concrete. U-05 Engineer builds a Wall. Grenade Launcher destroyed. ALERT: Hostiles spotted, dispatching reinforcements to Terminal M008. Acquired Pulse Rifle. Heat Sink melted. Aluminum Leg melted. G-34 Mercenary destroyed. System corrupted: Energy discharge (-85). System corrupted: Pulse Rifle failed to cycle. Overheating: System interference. Pulse Rifle temporarily disabled. Overheating: Core damaged (-48). Overheating: System interference. Beam Rifle temporarily disabled. Overheating: Adv. Treads damaged (-51). Overheating: Core damaged (-40). Map ----- +----------------------------------------------------+ | | | | | ???????????????????????????????????????????? | | ???????????????????????????????????????????? | | ???????????????????????????????????????????? | | ???????????????????????????????????????????? | | ???????????????????????????????????????????? | | ???????????????????????????????????????????? | | ???????????????????????????????????????????? | | ???????????????????????????????????????????? | | ???????????????????????????????????????????? | | ???????????????????????????????????????????? | | ???????????????????????????????????????????? | | ???????????????????????????????????????????? | | ???????????????????????????????????????????? | | ???????????????????????????????????????????? | | ???????????????????????????????????????????? | | #####??????????????????????????????????????? | | ??????????????????????????????????????? | | #????????????????????????????????????? | | " """ #????????????????????????????????????? | | " """ #????????????????????????????????????? | | " """ #?????######??########???????????????? | | ?????##!!!!##?#!!==[[#???????????????? | | ???????#! !#?#!!== [#???#???????????? | | ?????????# #?# @ #? #???????????? | | ############ ### *# #???????????? | | Y a =% #???????????? | | [ #???????????? | | #???????????? | | ############## #######+#######???????????? | | #?????# #????? ??????????????????? | | """ #?????# #????? ??????????????????? | | """ #?????# #????? ??????????????????? | | ![ """ #?????# #????# ??????????????????? | | !"%! #?????# #????# ??????????????????? | | [!!! #?????# #????#! ??????????????????? | | " ! #?????# #????# ???????????????????? | | != !!! #?????# #????#[???????????????????? | | !# #####?????# #????# ???????????????????? | | ####????????? #?????#???????????????????? | | ????????????? ?????????????????????????? | | ????????????? ?????????????????????????? | | ????????????? ?????????????????????????? | | ????????????? #?????????????????????????? | | ???????????????????????????????????????????? | | ???????????????????????????????????????????? | | ???????????????????????????????????????????? | | ???????????????????????????????????????????? | | ???????????????????????????????????????????? | +----------------------------------------------------+ Best States ------------- Heat Dissipation 28 Energy Generation 12 Energy Capacity 265 Matter Stores 300 Matter Capacity 300 Sight Range 16 Terrain Scan Density 10 Armor Coverage 300 Propulsion Shielding 33 Utility Shielding 33 Evasion (%) 55 Recoil Reduction 3 Item Schematics ----------------- None Robot Schematics ------------------ None Fabricated ------------ Nothing Repaired ---------- Nothing Studied --------- None Alien Tech Used ----------------- None Achievements -------------- None Challenges ------------ None Game ------ Seed PiercingPhasingEngine Manual? 0 Play Time 00:25:37 Cumulative 32.9 hours Start 2026.03.26 @ 20:07:50 End 2026.03.26 @ 20:32:39 Sessions 1 Manual Loads 0 Difficulty Rogue Special Mode None Game No. 88 Rogue 86 Adventurer 2 Explorer 0 Win Type - Total 0 Types 0/0/0/0/0/0/0/0/0/0 Lore% 7 Gallery% 19 Achievement% 17 Wizard Run 0 Options --------- Layout 1 ASCII 0 Keyboard 1 Movement Numpad Keybinds 0 Fullscreen 2 Font 32/SmallcapsGlow Map View 50x35 Zoom Use 0% Tactical HUD 0 Map Filters NONE Filters NONE Steam 1 RUN: d8e80ca4-1873-40df-9939-5d5ae44182bf